bitfinex/quotes_SOLUSD_20251117
["timestamp","ask_amount","ask_price","bid_price","bid_amount"]
[1763387357141,9.23358696,138.93,138.89,1.93593088]
[1763387357342,18.12096,138.94,138.89,1.93593088]
[1763387357343,9.23358696,138.92,138.89,1.93593088]
[1763387357650,9.23358696,138.92,138.89,2.62593088]
[1763387357839,9.23358696,138.92,138.89,1.93593088]
[1763387358050,9.23358696,138.9,138.89,1.93593088]
[1763387358228,27.35454696,138.9,138.89,1.93593088]
[1763387358548,27.90978769,138.9,138.89,1.93593088]
[1763387358847,9.78882769,138.89,138.87,1.0]
[1763387359015,32.62280916,138.88,138.87,1.0]
[1763387359218,27.90978769,138.87,138.77,0.69]
[1763387359421,20.05266023,138.86,138.77,0.69]
[1763387359645,20.05266023,138.86,138.76,5.55081107]
[1763387359849,5.55081107,138.86,138.8,0.69]
[1763387360053,9.78882769,138.91,138.81,5.55081107]
[1763387360234,4.70590043,138.9,138.8,0.69]
[1763387360433,5.55081107,138.85,138.81,0.69]
[1763387360947,18.12096,138.87,138.81,0.69]
[1763387361525,5.55081107,138.85,138.81,0.69]
[1763387361720,18.12096,138.87,138.77,5.55081107]
[1763387361721,18.12096,138.84,138.77,5.55081107]
[1763387362058,18.12096,138.84,138.78,0.69]
[1763387362059,5.55081107,138.82,138.78,0.69]
[1763387362356,27.90978769,138.83,138.78,0.69]
[1763387362548,5.55081107,138.8,138.75,0.69]
[1763387362752,5.55081107,138.78,138.75,0.69]
[1763387362959,5.55081107,138.77,138.75,0.69]
[1763387363128,5.55081107,138.76,138.72,0.69]
[1763387363735,18.12096,138.77,138.72,0.69]
[1763387364076,18.12096,138.77,138.73,5.55081107]
[1763387364441,2.0,138.92,138.76,5.55081107]
[1763387364639,2.0,138.92,138.74,0.69]
[1763387364640,18.12096,138.83,138.79,5.55081107]
[1763387364954,18.12096,138.83,138.78,5.55081107]
[1763387364955,23.67177107,138.83,138.78,5.55081107]
[1763387365151,23.67177107,138.83,138.79,0.69]
[1763387365863,5.55081107,138.82,138.79,0.69]
[1763387366075,5.55081107,138.8,138.68,18.12096]
[1763387366244,9.78882769,138.82,138.74,6.24081107]
[1763387366547,5.55081107,138.79,138.74,6.24081107]
[1763387366742,5.55081107,138.79,138.75,0.69]
[1763387366962,5.55081107,138.78,138.75,0.69]
[1763387367156,5.55081107,138.77,138.72,0.69]
[1763387367357,7.20149791,138.86,138.72,6.24081107]
[1763387367658,5.55081107,138.78,138.73,5.55081107]
[1763387367964,5.55081107,138.77,138.73,0.69]
[1763387368961,5.55081107,138.78,138.73,6.24081107]
[1763387369263,5.55081107,138.78,138.64,18.12096]
[1763387369454,23.67177107,138.78,138.74,0.69]
[1763387370149,18.12096,138.78,138.74,6.24081107]
[1763387370337,18.12096,138.78,138.74,0.69]
[1763387370338,23.67177107,138.78,138.74,0.69]
[1763387370537,23.67177107,138.78,138.72,5.55081107]
[1763387370538,5.55081107,138.77,138.72,0.69]
[1763387370756,18.12096,138.78,138.72,0.69]
[1763387370958,5.55081107,138.76,138.72,0.69]
[1763387371771,18.12096,138.78,138.69,0.69]
[1763387371772,5.55081107,138.73,138.69,0.69]
[1763387371953,5.55081107,138.76,138.71,5.55081107]
[1763387372145,5.55081107,138.76,138.72,0.69]
[1763387372344,23.67177107,138.77,138.72,0.69]
[1763387372668,23.67177107,138.77,138.72,6.24081107]
[1763387373055,18.12096,138.76,138.73,0.69]
[1763387373769,18.12096,138.76,138.63,18.12096]
[1763387373770,23.67177107,138.76,138.71,5.55081107]
[1763387373981,23.67177107,138.76,138.72,0.69]
[1763387374141,5.55081107,138.74,138.71,0.69]
[1763387374636,18.12096,138.74,138.68,6.24081107]
[1763387374840,18.12096,138.74,138.68,5.55081107]
[1763387375147,18.12096,138.74,138.69,0.69]
[1763387375339,5.55081107,138.72,138.69,0.69]
[1763387375951,18.12096,138.74,138.64,5.55081107]
[1763387376157,23.56328853,138.8,138.6,1.93593088]
[1763387376158,5.55081107,138.7,138.6,1.93593088]
[1763387376367,18.12096,138.62,138.6,1.93593088]
[1763387376867,5.55081107,138.61,138.6,1.93593088]
[1763387377243,18.12096,138.62,138.6,1.93593088]
[1763387377447,18.12096,138.62,138.6,2.65593088]
[1763387377871,23.67177107,138.66,138.61,0.72]
[1763387378042,18.12096,138.66,138.61,6.27081107]
[1763387378240,23.67177107,138.66,138.62,0.72]
[1763387378553,23.67177107,138.63,138.6,1.93593088]
[1763387378752,5.55081107,138.62,138.6,1.93593088]
[1763387378953,5.55081107,138.61,138.6,1.93593088]
[1763387379645,18.12096,138.63,138.6,1.93593088]
[1763387379959,18.12096,138.63,138.6,1.43593088]
[1763387380158,18.12096,138.61,138.6,2.15593088]
[1763387380358,18.12096,138.61,138.6,1.43593088]
[1763387380970,18.12096,138.64,138.6,1.43593088]
[1763387381263,23.67177107,138.63,138.6,2.15593088]
[1763387381467,18.12096,138.63,138.6,2.15593088]
[1763387381687,5.55081107,138.61,138.6,1.43593088]
[1763387382474,15.33963876,138.61,138.6,1.43593088]
[1763387382767,5.55081107,138.61,138.6,1.43593088]
[1763387385050,23.67177107,138.61,138.6,1.43593088]
[1763387385250,18.12096,138.61,138.6,1.43593088]
[1763387385466,33.46059876,138.61,138.6,1.43593088]
[1763387385791,27.90978769,138.61,138.6,1.43593088]
[1763387385997,18.12096,138.58,138.57,0.1]
[1763387386163,23.67177107,138.58,138.57,0.1]
[1763387386363,17.62096,138.54,138.51,1000.0]
[1763387386565,5.55081107,138.52,138.51,1000.0]
[1763387387594,18.03939744,138.59,138.51,1000.72]
[1763387387595,9.78882769,138.59,138.51,1000.72]
[1763387387808,5.55081107,138.53,138.51,1000.72]
[1763387388099,5.55081107,138.52,138.51,1000.72]
[1763387388264,9.78882769,138.59,138.51,1000.0]
[1763387388463,5.55081107,138.52,138.51,1000.0]
[1763387389009,18.12096,138.56,138.51,1000.72]
[1763387389297,18.12096,138.56,138.52,0.72]
[1763387389500,18.12096,138.53,138.52,0.72]
[1763387389799,23.67177107,138.55,138.52,0.72]
[1763387390111,18.12096,138.55,138.52,0.72]
[1763387391068,5.55081107,138.58,138.53,5.55081107]
[1763387391269,9.78882769,138.64,138.54,5.55081107]
[1763387391484,5.55081107,138.58,138.55,0.72]
[1763387391696,5.55081107,138.57,138.55,0.72]
[1763387392307,18.12096,138.58,138.52,5.55081107]
[1763387392308,5.55081107,138.56,138.52,0.72]
[1763387392599,5.55081107,138.54,138.52,0.72]
[1763387392971,18.12096,138.57,138.52,0.72]
[1763387393297,5.55081107,138.57,138.52,6.27081107]
[1763387393605,5.55081107,138.56,138.52,0.72]
[1763387393808,5.55081107,138.61,138.53,0.72]
[1763387394108,5.55081107,138.61,138.55,5.55081107]
[1763387394285,5.55081107,138.61,138.53,0.72]
[1763387394286,5.55081107,138.58,138.53,0.72]
[1763387394901,18.12096,138.6,138.53,0.72]
[1763387395113,5.55081107,138.58,138.53,0.72]
[1763387395286,36.71142026,138.69,138.53,0.72]
[1763387395287,9.78882769,138.69,138.57,5.55081107]
[1763387395613,5.55081107,138.64,138.59,5.55081107]
[1763387396104,5.55081107,138.65,138.6,6.27081107]
[1763387396470,5.55081107,138.65,138.61,0.72]
[1763387396670,5.55081107,138.62,138.57,5.55081107]
[1763387396874,18.12096,138.66,138.58,0.72]
[1763387397084,5.55081107,138.61,138.58,0.72]
[1763387397286,5.55081107,138.6,138.58,0.72]
[1763387397898,5.55081107,138.59,138.56,0.72]
[1763387398912,5.55081107,138.6,138.56,0.72]
[1763387399275,18.12096,138.62,138.56,0.72]
[1763387399276,23.67177107,138.61,138.56,6.27081107]
[1763387399617,18.12096,138.61,138.57,5.55081107]
[1763387399815,18.12096,138.61,138.58,0.72]
[1763387400182,12.76067186,138.7,138.58,0.72]
[1763387400498,5.55081107,138.6,138.56,0.72]
[1763387400697,5.55081107,138.59,138.56,0.72]
[1763387400892,18.12096,138.63,138.56,0.72]
[1763387401296,32.78518519,138.7,138.56,0.72]
[1763387401297,23.67177107,138.62,138.56,0.72]
[1763387401517,5.55081107,138.6,138.56,0.72]
[1763387401732,5.55081107,138.59,138.56,0.72]
[1763387401888,5.55081107,138.6,138.56,0.72]
[1763387402091,18.12096,138.62,138.56,0.72]
[1763387402386,5.55081107,138.61,138.56,0.72]
[1763387402601,5.55081107,138.61,138.56,6.27081107]
[1763387402796,18.12096,138.62,138.56,0.72]
[1763387402797,5.55081107,138.6,138.56,0.72]
[1763387403030,5.55081107,138.6,138.57,0.72]
[1763387403230,18.12096,138.58,138.52,0.72]
[1763387403536,5.55081107,138.58,138.52,0.72]
[1763387403821,5.55081107,138.57,138.52,6.27081107]
[1763387403987,23.67177107,138.58,138.53,6.27081107]
[1763387404558,18.12096,138.61,138.54,0.72]
[1763387404763,5.55081107,138.59,138.54,0.72]
[1763387404971,5.55081107,138.57,138.54,0.72]
[1763387405132,23.67177107,138.57,138.54,0.72]
[1763387405334,9.78882769,138.63,138.51,1000.72]
[1763387405335,18.12096,138.54,138.51,1000.72]
[1763387405763,23.67177107,138.54,138.51,1000.72]
[1763387406079,18.12096,138.53,138.51,1000.72]
[1763387406256,18.12096,138.53,138.52,0.72]
[1763387406445,5.59886399,138.64,138.52,0.72]
[1763387406748,5.55081107,138.56,138.52,0.72]
[1763387407131,5.55081107,138.54,138.51,1000.0]
[1763387407333,18.12096,138.56,138.52,0.66]
[1763387407661,18.12096,138.56,138.51,1000.66]
[1763387407848,5.55081107,138.54,138.51,1000.66]
[1763387408048,5.55081107,138.52,138.51,1000.0]
[1763387410454,18.12096,138.53,138.51,1000.0]
[1763387410764,18.12096,138.54,138.51,1000.0]
[1763387411070,5.55081107,138.52,138.51,1000.0]
[1763387411770,18.12096,138.54,138.51,1000.0]
[1763387412068,5.55081107,138.52,138.51,1000.0]
[1763387412647,18.12096,138.56,138.51,1000.0]
[1763387412849,18.12096,138.55,138.51,1000.66]
[1763387413145,5.55081107,138.54,138.51,1000.0]
[1763387413456,5.55081107,138.54,138.51,1000.66]
[1763387413969,5.55081107,138.52,138.51,1000.0]
[1763387414168,18.12096,138.55,138.51,1000.0]
[1763387414342,5.55081107,138.52,138.51,1000.0]
[1763387414665,4.67331853,138.52,138.51,1000.0]
[1763387414961,5.55081107,138.52,138.51,1000.0]
[1763387415286,25.56376836,138.52,138.51,950.33563322]
[1763387415438,10.2241296,138.52,138.51,950.33563322]
[1763387415838,20.01295729,138.52,138.51,950.33563322]
[1763387416640,32.13002179,138.52,138.51,900.67126644]
[1763387417064,30.13002179,138.52,138.51,900.67126644]
[1763387417263,14.79038303,138.52,138.51,900.67126644]
[1763387417568,10.2241296,138.52,138.51,900.67126644]
[1763387417941,20.01295729,138.52,138.51,851.00689966]
[1763387418181,24.58131889,138.52,138.51,851.00689966]
[1763387418470,30.13212996,138.52,138.51,851.00689966]
[1763387418656,24.58131889,138.52,138.51,851.00689966]
[1763387418851,30.13212996,138.52,138.51,801.34253288]
[1763387419367,32.13212996,138.52,138.51,795.19581789]
[1763387419762,24.58131889,138.52,138.51,795.19581789]
[1763387420371,24.58131889,138.52,138.51,745.53145111]
[1763387420577,14.7924912,138.52,138.51,745.53145111]
[1763387420780,18.57326789,138.52,138.51,745.53145111]
[1763387421069,14.00490629,138.52,138.51,745.53145111]
[1763387421674,22.79427853,138.52,138.51,745.53145111]
[1763387421978,22.79427853,138.52,138.51,746.20145111]
[1763387421979,4.67331853,138.52,138.51,746.20145111]
[1763387422166,9.25252977,138.57,138.51,745.53145111]
[1763387422479,9.33158776,138.52,138.51,745.53145111]
[1763387422682,14.00490629,138.52,138.51,745.53145111]
[1763387422858,14.00490629,138.52,138.51,746.20145111]
[1763387423249,9.33158776,138.52,138.51,745.53145111]
[1763387423455,14.02294217,138.52,138.51,745.53145111]
[1763387423767,14.02294217,138.52,138.51,746.20145111]
[1763387423965,9.33158776,138.56,138.51,755.53303887]
[1763387424160,9.33158776,138.56,138.52,0.67]
[1763387424798,0.69,138.6,138.52,0.67]
[1763387424799,0.69,138.59,138.52,0.67]
[1763387425084,9.33158776,138.54,138.52,0.67]
[1763387425579,9.33158776,138.53,138.51,745.53145111]
[1763387426174,9.33158776,138.53,138.51,746.20145111]
[1763387426875,18.81096,138.57,138.51,745.53145111]
[1763387426876,9.33158776,138.54,138.51,745.53145111]
[1763387427180,9.33158776,138.53,138.51,745.53145111]
[1763387427366,9.33158776,138.54,138.51,745.53145111]
[1763387427566,9.33158776,138.55,138.51,745.53145111]
[1763387427881,9.33158776,138.56,138.52,0.67]
[1763387428051,18.12096,138.58,138.51,745.53145111]
[1763387428257,9.33158776,138.54,138.51,746.20145111]
[1763387428461,18.12096,138.57,138.51,746.20145111]
[1763387428680,9.33158776,138.55,138.51,746.20145111]
[1763387428983,27.45254776,138.56,138.52,0.67]
[1763387429360,18.81096,138.59,138.52,0.67]
[1763387429565,9.33158776,138.56,138.52,0.67]
[1763387430768,4.58442567,138.58,138.52,0.67]
[1763387430979,13.56671403,138.62,138.52,0.67]
[1763387430980,9.33158776,138.57,138.52,10.00158776]
[1763387431387,9.33158776,138.56,138.53,0.67]
[1763387431595,9.33158776,138.55,138.51,746.20145111]
[1763387431885,9.33158776,138.55,138.51,745.53145111]
[1763387431886,9.33158776,138.52,138.51,745.53145111]
[1763387432106,18.81096,138.56,138.51,745.53145111]
[1763387432393,9.33158776,138.52,138.51,745.53145111]
[1763387432569,9.33158776,138.52,138.51,746.20145111]
[1763387432570,18.12096,138.52,138.51,746.20145111]
[1763387433563,18.12096,138.56,138.51,746.20145111]
[1763387433764,9.33158776,138.53,138.51,745.53145111]
[1763387433971,9.33158776,138.53,138.52,0.67]
[1763387434360,9.33158776,138.53,138.51,745.53145111]
[1763387434567,27.45254776,138.52,138.51,745.53145111]
[1763387435614,9.33158776,138.52,138.51,745.53145111]
[1763387435776,9.33158776,138.52,138.51,746.20145111]
[1763387436503,18.12096,138.56,138.51,746.20145111]
[1763387436670,18.12096,138.56,138.52,0.65]
[1763387436671,9.33158776,138.56,138.52,0.65]
[1763387436874,9.33158776,138.57,138.52,0.65]
[1763387437073,9.33158776,138.56,138.52,0.65]
[1763387437294,9.33158776,138.53,138.52,0.65]
[1763387437495,9.33158776,138.54,138.52,0.65]
[1763387437684,9.33158776,138.55,138.52,0.65]
[1763387437984,9.33158776,138.56,138.52,9.98158776]
[1763387438379,9.33158776,138.56,138.53,0.65]
[1763387438997,9.33158776,138.54,138.53,0.65]
[1763387439200,18.12096,138.55,138.51,745.53145111]
[1763387439382,18.12096,138.55,138.51,746.18145111]
[1763387439579,18.12096,138.55,138.52,0.65]
[1763387439915,9.33158776,138.54,138.52,0.65]
[1763387440088,9.33158776,138.55,138.52,0.65]
[1763387440280,9.33158776,138.54,138.52,0.65]
[1763387440609,18.80096,138.56,138.51,745.53145111]
[1763387440795,9.33158776,138.52,138.51,745.53145111]
[1763387441603,9.33158776,138.54,138.51,746.18145111]
[1763387441795,18.12096,138.57,138.52,0.65]
[1763387441796,9.33158776,138.55,138.52,0.65]
[1763387442518,9.33158776,138.54,138.52,0.65]
[1763387443014,9.33158776,138.53,138.51,745.53145111]
[1763387443187,9.33158776,138.52,138.51,745.53145111]
[1763387443588,9.33158776,138.53,138.51,745.53145111]
[1763387443893,9.33158776,138.6,138.51,745.53145111]
[1763387443894,27.45254776,138.54,138.52,0.65]
[1763387444100,9.33158776,138.55,138.52,0.65]
[1763387444290,0.68,138.6,138.52,0.65]
[1763387444689,9.33158776,138.55,138.52,0.65]
[1763387445115,18.12096,138.59,138.52,0.65]
[1763387445422,9.33158776,138.55,138.52,0.65]
[1763387445623,18.12096,138.59,138.52,0.65]
[1763387445921,9.33158776,138.55,138.52,0.65]
[1763387446438,4.59799465,138.58,138.52,0.65]
[1763387446720,9.33158776,138.57,138.52,0.65]
[1763387446911,4.60126452,138.6,138.52,0.65]
[1763387447217,9.33158776,138.56,138.52,0.65]
[1763387447418,9.33158776,138.55,138.52,0.65]
[1763387448428,9.78882769,138.62,138.52,9.98158776]
[1763387448743,9.33158776,138.55,138.52,0.65]
[1763387448899,9.33158776,138.54,138.52,0.65]
[1763387449093,9.33158776,138.53,138.52,0.65]
[1763387449289,9.33158776,138.54,138.52,0.65]
[1763387449841,14.01626254,138.53,138.51,745.53145111]
[1763387450141,18.12096,138.53,138.51,745.53145111]
[1763387450310,14.01858933,138.52,138.51,745.53145111]
[1763387450515,14.01858933,138.52,138.51,746.18145111]
[1763387451023,14.01912282,138.52,138.51,746.18145111]
[1763387451251,14.01912282,138.52,138.51,745.53145111]
[1763387451439,18.62766116,138.52,138.51,745.53145111]
[1763387451750,14.01912282,138.52,138.51,745.53145111]
[1763387452617,4.68753506,138.52,138.51,745.53145111]
[1763387452859,4.68753506,138.52,138.51,746.18145111]
[1763387453058,9.33158776,138.52,138.51,746.18145111]
[1763387453341,9.33158776,138.53,138.51,746.18145111]
[1763387453818,4.60939304,138.56,138.52,0.65]
[1763387454020,0.68,138.6,138.52,0.65]
[1763387454215,9.33158776,138.55,138.52,0.65]
[1763387454837,18.12096,138.57,138.52,0.65]
[1763387455028,14.02058055,138.56,138.52,0.65]
[1763387455220,9.33158776,138.56,138.52,0.65]
[1763387455415,9.33158776,138.55,138.52,0.65]
[1763387455621,0.68,138.6,138.52,0.65]
[1763387455622,9.33158776,138.54,138.52,0.65]
[1763387456130,4.60976142,138.57,138.52,0.65]
[1763387456330,9.33158776,138.54,138.52,0.65]
[1763387456628,4.68735739,138.56,138.52,0.65]
[1763387456629,9.33158776,138.53,138.52,0.65]
[1763387457452,9.33158776,138.55,138.52,0.65]
[1763387457649,4.68727378,138.54,138.52,0.65]
[1763387457958,18.12096,138.52,138.51,745.53145111]
[1763387458132,32.13982154,138.52,138.51,745.53145111]
[1763387458339,18.12096,138.52,138.51,746.18145111]
[1763387458745,27.45254776,138.53,138.51,746.18145111]
[1763387458936,13.987444,138.52,138.51,745.53145111]
[1763387459335,18.59439948,138.52,138.51,745.53145111]
[1763387459952,27.38377172,138.52,138.51,745.53145111]
[1763387460154,32.108404,138.52,138.51,745.53145111]
[1763387460555,19.27325505,138.52,138.51,745.53145111]
[1763387460765,31.06208274,138.52,138.51,679.85123689]
[1763387460968,100.81033775,138.52,138.51,679.85123689]
[1763387461136,28.892732,138.52,138.51,679.85123689]
[1763387461337,19.27026355,138.52,138.51,679.85123689]
[1763387462173,29.05909124,138.52,138.51,614.31102267]
[1763387462469,19.27026355,138.52,138.51,614.31102267]
[1763387462765,29.05909124,138.52,138.51,614.31102267]
[1763387462969,29.05909124,138.52,138.51,552.23056419]
[1763387463451,31.05909124,138.52,138.51,552.23056419]
[1763387463654,52.79113513,138.52,138.51,552.23056419]
[1763387463965,52.79113513,138.52,138.51,490.15010571]
[1763387464170,102.79113513,138.52,138.51,486.69034997]
[1763387464464,43.45954737,138.52,138.51,486.69034997]
[1763387464670,52.79113513,138.52,138.51,486.69034997]
[1763387465182,61.67113513,138.52,138.51,421.15013575]
[1763387465468,80.62519134,138.52,138.51,411.82873421]
[1763387465682,71.29360358,138.52,138.51,411.82873421]
[1763387465868,49.88230744,138.52,138.51,411.82873421]
[1763387466339,18.59026355,138.52,138.51,411.82873421]
[1763387466548,13.9844525,138.52,138.51,411.82873421]
[1763387466758,4.65286474,138.52,138.51,412.48873421]
[1763387467045,9.33158776,138.54,138.51,412.48873421]
[1763387467249,9.33158776,138.54,138.52,0.66]
[1763387467560,13.97744971,138.53,138.51,411.82873421]
[1763387467762,9.33158776,138.53,138.51,411.82873421]
[1763387467943,9.33158776,138.53,138.51,412.48873421]
[1763387468162,9.33158776,138.54,138.51,412.48873421]
[1763387468360,9.33158776,138.53,138.51,412.48873421]
[1763387469058,18.12096,138.54,138.51,411.82873421]
[1763387469266,9.33158776,138.52,138.51,411.82873421]
[1763387469491,18.12096,138.52,138.51,412.48873421]
[1763387469887,9.33158776,138.53,138.51,412.48873421]
[1763387470062,9.33158776,138.56,138.52,0.66]
[1763387470268,9.33158776,138.56,138.52,9.99158776]
[1763387470485,9.33158776,138.56,138.53,0.66]
[1763387470872,5.1797786,138.61,138.51,421.16032197]
[1763387470873,18.12096,138.52,138.51,411.82873421]
[1763387471062,9.33158776,138.52,138.51,411.82873421]
[1763387471464,18.70096,138.57,138.51,412.48873421]
[1763387471664,9.33158776,138.52,138.51,412.48873421]
[1763387472070,27.45254776,138.53,138.51,412.48873421]
[1763387472405,9.33158776,138.52,138.51,411.82873421]
[1763387472771,13.9766424,138.52,138.51,411.82873421]
[1763387474468,4.64505464,138.52,138.51,411.82873421]
[1763387474669,13.9766424,138.52,138.51,411.82873421]
[1763387475069,4.64505464,138.52,138.51,411.82873421]
[1763387475270,0.58,138.59,138.51,421.82032197]
[1763387475475,9.82475715,138.61,138.52,0.66]
[1763387475677,9.33158776,138.58,138.54,9.33158776]
[1763387475884,4.64610683,138.57,138.53,9.33158776]
[1763387476085,18.12096,138.57,138.52,0.66]
[1763387476313,9.33158776,138.57,138.53,9.33158776]
[1763387476610,9.33158776,138.57,138.51,411.82873421]
[1763387476611,9.33158776,138.54,138.51,412.48873421]
[1763387476777,18.12096,138.57,138.52,0.66]
[1763387476980,13.9776634,138.56,138.52,0.66]
[1763387477180,9.33158776,138.55,138.52,0.66]
[1763387477880,27.45254776,138.52,138.51,405.83949489]
[1763387478074,18.12096,138.57,138.51,415.17108265]
[1763387478305,27.45254776,138.55,138.51,405.83949489]
[1763387478479,4.64486818,138.54,138.51,405.83949489]
[1763387478887,4.64486818,138.54,138.52,9.33158776]
[1763387479093,18.12096,138.55,138.51,415.17108265]
[1763387479435,9.33158776,138.55,138.51,415.17108265]
[1763387479609,27.45254776,138.52,138.51,405.83949489]
[1763387479904,32.09520637,138.52,138.51,405.83949489]
[1763387480405,14.65424637,138.52,138.51,405.83949489]
[1763387480603,19.24861716,138.52,138.51,405.83949489]
[1763387480789,40.9790869,138.52,138.51,405.83949489]
[1763387481389,102.76791459,138.52,138.51,270.56028067]
[1763387481602,59.64791459,138.52,138.51,270.56028067]
[1763387481808,40.9790869,138.52,138.51,270.56028067]
[1763387482110,50.76791459,138.52,138.51,238.88816977]
[1763387482284,100.76791459,138.52,138.51,238.88816977]
[1763387482484,100.76791459,138.52,138.51,169.88819981]
[1763387482704,50.76791459,138.52,138.51,169.88819981]
[1763387482907,37.23199429,138.52,138.51,169.88819981]
[1763387483121,30.96749914,138.52,138.51,169.88819981]
[1763387483288,10.22715376,138.52,138.51,169.88819981]
[1763387483811,23.70545515,138.52,138.51,169.88819981]
[1763387485187,29.02658427,138.52,138.51,169.88819981]
[1763387485511,28.34658427,138.52,138.51,169.88819981]
[1763387485814,22.76208912,138.52,138.51,169.88819981]
[1763387486000,28.34658427,138.52,138.51,169.88819981]
[1763387486406,28.34658427,138.52,138.51,164.38819981]
[1763387486586,28.34658427,138.52,138.51,165.10819981]
[1763387486787,23.70545515,138.52,138.51,165.10819981]
[1763387487194,23.70545515,138.52,138.51,164.38819981]
[1763387487416,28.34729317,138.52,138.51,164.38819981]
[1763387487785,29.02729317,138.52,138.51,164.38819981]
[1763387488009,9.78882769,138.55,138.52,20.97270683]
[1763387488317,5.58449515,138.53,138.51,135.69653986]
[1763387488500,5.58449515,138.52,138.51,135.69653986]
[1763387488893,70.95781799,138.52,138.51,135.69653986]
[1763387489222,25.55124873,138.52,138.51,86.03217308]
[1763387489391,19.96675358,138.52,138.51,86.03217308]
[1763387490005,76.11124873,138.52,138.51,79.88545809]
[1763387490300,99.84486701,138.52,138.51,30.22109131]
[1763387490708,127.73662084,138.52,138.51,30.22109131]
[1763387490900,127.73662084,138.52,138.51,24.07437632]
[1763387491215,18.12096,138.48,138.42,0.72]
[1763387491513,5.58449515,138.43,138.42,0.72]
[1763387495312,18.12096,138.46,138.42,0.72]
[1763387495523,5.58449515,138.43,138.42,0.108]
[1763387495693,18.12096,138.44,138.38,5.68449515]
[1763387496020,18.12096,138.45,138.38,5.58449515]
[1763387496212,5.58449515,138.42,138.38,5.58449515]
[1763387496717,5.58449515,138.42,138.37,5.58449515]
[1763387497218,18.12096,138.43,138.36,5.58449515]
[1763387497388,23.70545515,138.43,138.38,5.58449515]
[1763387497588,5.58449515,138.49,138.4,5.58449515]
[1763387497813,5.58449515,138.47,138.43,5.58449515]
[1763387498110,5.58449515,138.47,138.34,9.78882769]
[1763387498111,5.58449515,138.47,138.42,5.58449515]
[1763387498515,5.58449515,138.46,138.43,0.72]
[1763387498717,5.58449515,138.44,138.43,0.72]
[1763387499525,5.58449515,138.44,138.41,0.72]
[1763387499712,5.58449515,138.43,138.41,0.72]
[1763387499916,18.78096,138.47,138.41,0.72]
[1763387500115,5.58449515,138.43,138.41,0.72]
[1763387500838,5.58449515,138.44,138.41,0.72]
[1763387501705,5.58449515,138.45,138.41,0.72]
[1763387501906,5.58449515,138.46,138.41,6.30449515]
[1763387502109,18.12096,138.47,138.42,5.58449515]
[1763387502335,5.58449515,138.46,138.42,6.30449515]
[1763387502529,5.58449515,138.46,138.43,0.72]
[1763387503839,18.12096,138.48,138.43,0.72]
[1763387504041,5.58449515,138.48,138.43,6.30449515]
[1763387504446,5.58449515,138.48,138.37,9.78882769]
[1763387504447,5.58449515,138.48,138.44,6.30449515]
[1763387504732,5.58449515,138.48,138.44,0.72]
[1763387504939,5.58449515,138.48,138.45,0.72]
[1763387505122,5.58449515,138.48,138.45,0.108]
[1763387505315,5.58449515,138.48,138.43,0.83767427]
[1763387505517,5.58449515,138.47,138.42,4.75631603]
[1763387505728,5.58449515,138.45,138.4,5.58449515]
[1763387505930,18.12096,138.5,138.44,5.58449515]
[1763387506136,18.12096,138.5,138.42,5.58449515]
[1763387506137,5.58449515,138.47,138.42,5.58449515]
[1763387506416,5.58449515,138.48,138.43,5.58449515]
[1763387506954,5.58449515,138.47,138.43,5.58449515]
[1763387507127,5.58449515,138.48,138.44,0.72]
[1763387507731,18.12096,138.45,138.31,1.31593088]
[1763387507939,5.58449515,138.46,138.42,0.72]
[1763387509537,18.12096,138.44,138.4,5.58449515]
[1763387509728,0.66,138.46,138.4,0.72]
[1763387509931,5.58449515,138.44,138.4,0.72]
[1763387510130,5.58449515,138.42,138.32,9.78882769]
[1763387510313,23.70545515,138.43,138.39,5.58449515]
[1763387510644,5.58449515,138.44,138.39,5.58449515]
[1763387510841,5.58449515,138.44,138.39,6.30449515]
[1763387511039,5.58449515,138.44,138.4,0.72]
[1763387511629,18.78096,138.45,138.4,0.72]
[1763387511937,5.58449515,138.44,138.4,0.72]
[1763387512128,6.24449515,138.44,138.4,0.72]
[1763387512326,5.58449515,138.44,138.4,0.72]
[1763387512529,18.12096,138.45,138.4,0.72]
[1763387512727,5.58449515,138.43,138.4,0.72]
[1763387513531,5.58449515,138.43,138.39,1.55767427]
[1763387513735,5.58449515,138.43,138.39,0.94567427]